bitfinex/quotes_ETHUSD_20250814
["timestamp","ask_amount","ask_price","bid_price","bid_amount"]
[1755169800697,2.6596,4698.3,4698.2,3.5362]
[1755169801003,0.002,4698.3,4698.2,3.5362]
[1755169801203,2.6596,4698.3,4698.2,3.5362]
[1755169801724,0.002,4698.3,4698.2,3.55748474]
[1755169801936,0.002,4698.3,4698.2,4.40022]
[1755169802299,0.002,4698.3,4698.2,7.40022]
[1755169802515,0.002,4698.6,4698.3,3.0]
[1755169802839,0.002,4698.6,4698.5,28.43684788]
[1755169803011,0.002,4699.1,4698.6,3.0]
[1755169803182,5.103,4703.2,4698.9,0.55]
[1755169803183,0.4587,4700.9,4698.9,0.55]
[1755169803382,2.6576,4700.9,4699.4,31.43684788]
[1755169803585,2.6576,4700.9,4699.4,35.28774788]
[1755169803814,2.1989,4700.6,4699.4,35.28774788]
[1755169804321,0.4587,4700.4,4699.4,31.43684788]
[1755169804523,2.2009,4699.5,4699.4,8.63552725]
[1755169804688,2.2001,4699.5,4699.4,3.1064]
[1755169804887,2.2001,4699.5,4699.4,6.5334]
[1755169805181,0.0012,4699.5,4699.4,6.5334]
[1755169806530,0.0012,4699.5,4699.4,6.5342]
[1755169807288,0.0012,4699.5,4699.4,6.9571]
[1755169807647,1.1788997,4703.8,4699.8,1.276]
[1755169807782,1.1788997,4703.8,4700.6,2.54933517]
[1755169808142,3.3777997,4703.8,4703.2,3.0]
[1755169808319,3.3777997,4703.8,4703.3,10.62912725]
[1755169808506,3.3777997,4703.8,4703.4,3.0]
[1755169808695,1.1788997,4703.8,4703.5,3.426]
[1755169808896,1.1788997,4703.8,4703.6,3.0]
[1755169809233,2.46,4704.3,4703.8,0.55]
[1755169809529,2.46,4704.3,4703.3,7.20312725]
[1755169809530,2.46,4704.3,4704.2,31.33044788]
[1755169809729,0.4587,4705.6,4704.3,3.0]
[1755169809925,0.4587,4705.6,4704.4,0.55]
[1755169810235,2.1989,4705.4,4704.6,3.0]
[1755169810534,2.12444724,4707.2,4704.7,3.426]
[1755169810734,2.12498496,4706.0,4704.7,3.426]
[1755169810906,2.12486914,4706.2,4704.7,3.426]
[1755169811107,2.12442834,4707.2,4704.7,3.426]
[1755169811108,2.1989,4705.4,4704.7,3.426]
[1755169811436,2.6576,4705.4,4704.5,3.0]
[1755169811653,3.4289,4704.8,4704.5,5.10112725]
[1755169811802,2.6576,4704.7,4704.5,3.0]
[1755169812005,2.1989,4704.7,4704.6,3.424]
[1755169812350,1.23,4704.8,4704.6,3.424]
[1755169812513,2.6576,4704.7,4704.5,3.0]
[1755169812700,1.23,4704.8,4704.6,3.424]
[1755169812903,1.23,4704.8,4704.5,3.0]
[1755169813213,2.6576,4704.7,4703.9,3.41]
[1755169813408,0.4587,4704.6,4704.0,3.424]
[1755169813608,0.4587,4704.6,4703.6,28.33044788]
[1755169813820,2.1989,4704.5,4703.7,3.423]
[1755169814142,2.12571479,4704.3,4703.0,3.0]
[1755169814361,2.12571479,4704.3,4703.1,3.423]
[1755169814362,2.6576,4704.2,4703.1,3.423]
[1755169814638,0.4587,4704.1,4703.6,28.33044788]
[1755169815006,0.4587,4704.1,4703.7,3.423]
[1755169815007,2.1989,4704.0,4703.7,3.423]
[1755169815199,0.4587,4703.9,4703.1,2.10112725]
[1755169815407,0.4587,4703.9,4703.0,3.0]
[1755169815705,2.1989,4703.8,4702.8,5.099]
[1755169816011,0.4587,4703.7,4702.9,6.423]
[1755169816224,0.4587,4703.7,4702.0,0.15978474]
[1755169816533,2.22021303,4703.6,4702.1,3.423]
[1755169816721,2.12619251,4703.3,4702.1,3.4238]
[1755169816925,2.6576,4703.2,4702.1,3.4238]
[1755169817135,2.12636266,4702.9,4702.2,3.423]
[1755169817443,2.6576,4702.8,4702.2,3.423]
[1755169817624,2.1989,4702.8,4702.1,0.0008]
[1755169817818,0.4587,4702.7,4702.2,3.423]
[1755169818042,0.4587,4702.7,4702.2,4.06538]
[1755169818209,2.1989,4702.8,4702.2,4.06538]
[1755169818210,2.1989,4702.8,4702.6,0.1064]
[1755169818545,2.6576,4702.7,4702.6,0.1064]
[1755169818709,2.6576,4702.7,4702.6,3.423]
[1755169819741,2.6576,4702.7,4702.6,3.5294]
[1755169820539,2.1989,4702.7,4702.6,3.5294]
[1755169820732,2.1989,4703.0,4702.6,3.5294]
[1755169820928,2.12621606,4703.2,4702.6,3.5294]
[1755169821139,2.6576,4702.9,4702.6,3.423]
[1755169821453,2.7289,4702.8,4702.6,3.423]
[1755169821658,2.12594671,4703.8,4702.8,0.1064]
[1755169821842,2.12594671,4703.8,4702.9,3.423]
[1755169822042,2.12626986,4703.1,4702.9,3.423]
[1755169822210,2.7289,4703.0,4702.1,28.33124788]
[1755169822414,2.7289,4703.0,4702.2,3.423]
[1755169822612,2.7289,4703.0,4702.9,0.1064]
[1755169822841,2.7289,4703.0,4702.9,3.5294]
[1755169824522,2.2638,4703.0,4702.9,3.5294]
[1755169824724,0.4651,4703.4,4702.9,3.5294]
[1755169824923,2.2638,4703.5,4702.9,3.5294]
[1755169825141,2.2638,4703.8,4703.0,0.35294]
[1755169825568,2.2638,4704.1,4703.1,0.02126257]
[1755169826214,2.2638,4704.2,4703.2,3.422]
[1755169826409,1.23,4704.8,4703.5,28.33044788]
[1755169826613,2.2638,4704.7,4703.5,28.33044788]
[1755169826814,2.2638,4704.7,4703.6,2.10112725]
[1755169827015,2.2638,4704.7,4703.7,3.422]
[1755169827217,2.2638,4704.7,4703.6,2.10192725]
[1755169827521,0.4651,4704.6,4703.7,3.422]
[1755169827867,0.4651,4704.6,4703.8,3.422]
[1755169828061,2.2638,4704.5,4703.8,3.422]
[1755169828224,0.4651,4704.4,4703.8,3.422]
[1755169828418,0.4651,4704.4,4703.6,0.0008]
[1755169828613,2.2638,4704.3,4703.9,3.422]
[1755169828813,1.23,4704.8,4703.9,3.422]
[1755169828814,2.2638,4704.2,4703.9,3.422]
[1755169829143,2.7289,4704.1,4703.9,3.422]
[1755169829326,2.7289,4704.0,4703.6,0.0008]
[1755169829527,2.7289,4704.5,4703.7,3.422]
[1755169829734,2.7289,4704.5,4703.8,0.34228]
[1755169830119,1.23,4704.8,4703.8,0.34228]
[1755169830324,1.23,4704.8,4703.9,0.02125895]
[1755169830521,1.23,4704.8,4703.8,3.34228]
[1755169830822,1.23,4704.8,4704.4,28.33044788]
[1755169831157,1.23,4704.8,4704.5,5.52312725]
[1755169831347,1.23,4704.8,4704.5,5.94482725]
[1755169831970,1.23,4704.8,4704.6,3.4217]
[1755169832345,1.23,4704.8,4704.7,0.4217]
[1755169832532,1.2292,4704.8,4704.7,0.58004038]
[1755169832738,1.2292,4704.8,4704.7,5.68116763]
[1755169833828,1.2292,4704.8,4704.7,6.23116763]
[1755169834566,1.2292,4704.8,4704.7,8.68046763]
[1755169835130,1.2292,4704.8,4704.7,5.25946763]
[1755169835330,1.2292,4704.8,4704.7,8.67946763]
[1755169835633,1.2292,4704.8,4704.7,5.25946763]
[1755169835972,1.2292,4704.8,4704.7,8.67946763]
[1755169836327,1.2292,4704.8,4704.7,5.25946763]
[1755169836530,1.2292,4704.8,4704.7,8.67946763]
[1755169837139,1.2292,4704.8,4704.7,8.68026763]
[1755169837956,1.232,4705.3,4704.8,3.0]
[1755169838165,1.232,4705.3,4705.2,31.33044788]
[1755169838363,1.232,4705.3,4705.2,34.75044788]
[1755169838527,1.232,4705.3,4705.2,31.33044788]
[1755169838935,1.232,4705.3,4705.2,34.75044788]
[1755169839851,0.002,4705.8,4705.3,3.0]
[1755169840076,0.002,4705.8,4705.5,0.55]
[1755169840289,0.002,4705.8,4705.7,3.0]
[1755169840493,0.002,4705.8,4705.7,3.4217]
[1755169840799,0.002,4705.8,4705.7,3.9717]
[1755169841092,0.002,4705.8,4705.7,4.81134117]
[1755169841405,1.23,4707.3,4705.7,4.81134117]
[1755169841406,2.2638,4707.2,4705.8,0.55]
[1755169841690,1.23,4707.3,4706.3,31.88044788]
[1755169841863,1.23,4707.3,4707.1,28.33044788]
[1755169842066,1.23,4707.3,4707.2,3.419]
[1755169842460,1.23,4707.3,4707.2,3.7609]
[1755169843266,1.23,4707.3,4707.2,3.419]
[1755169844959,3.4938,4707.3,4706.4,0.55]
[1755169845160,3.9589,4707.3,4706.3,3.0]
[1755169845383,3.9589,4707.3,4706.5,3.0]
[1755169845888,2.7289,4707.2,4706.6,3.418]
[1755169846092,2.7289,4707.2,4706.8,3.0]
[1755169846255,2.7289,4707.2,4706.7,3.418]
[1755169846256,2.2638,4707.1,4706.3,3.0]
[1755169846459,0.4651,4707.0,4706.5,3.0]
[1755169846821,0.4651,4707.0,4706.7,3.0]
[1755169847109,2.7289,4706.9,4706.8,3.417]
[1755169847259,2.7289,4706.9,4706.8,3.4178]
[1755169848062,2.7289,4706.9,4706.8,0.0008]
[1755169848261,2.7289,4706.9,4706.8,3.4178]
[1755169848767,2.2638,4706.9,4706.8,3.4178]
[1755169849000,1.23,4707.3,4706.8,3.78958]
[1755169849302,1.23,4707.3,4706.9,3.417]
[1755169850506,1.23,4707.3,4707.0,3.417]
[1755169850884,1.23,4707.3,4707.1,28.33044788]
[1755169851464,2.2555,4707.2,4706.8,0.37258]
[1755169851673,2.2555,4707.1,4707.0,3.0]
[1755169852085,1.23,4707.3,4707.0,3.0]
[1755169854707,1.23,4707.6,4707.3,0.55]
[1755169855003,1.23,4707.6,4707.5,3.0]
[1755169855299,1.2292,4707.6,4707.5,3.0]
[1755169855519,1.2292,4707.6,4707.5,5.10112725]
[1755169855664,1.2292,4707.6,4707.5,6.416]
[1755169856081,1.2292,4707.6,4707.5,6.966]
[1755169856311,1.2292,4707.6,4707.5,7.3877]
[1755169856522,0.002,4708.3,4707.7,0.55]
[1755169856680,0.002,4708.3,4707.9,3.55]
[1755169856879,0.002,4708.3,4708.0,1.0516]
[1755169857102,0.002,4708.3,4708.2,3.0]
[1755169857279,0.002,4708.3,4708.2,8.093]
[1755169857479,0.002,4708.3,4708.2,8.0938]
[1755169858508,2.2575,4708.3,4708.2,8.0938]
[1755169858706,2.2575,4708.3,4708.2,13.60992725]
[1755169858909,0.002,4708.3,4708.2,5.10192725]
[1755169859098,0.002,4708.3,4708.2,3.4158]
[1755169859300,0.002,4708.3,4708.2,6.4158]
[1755169860012,2.2575,4708.3,4708.2,6.4158]
[1755169860213,2.7249,4708.3,4708.2,6.4158]
[1755169860422,2.7249,4708.3,4708.2,0.0008]
[1755169860634,2.7249,4708.3,4708.2,3.4158]
[1755169861713,2.7249,4708.3,4708.2,3.4148]
[1755169862092,2.6749,4708.3,4708.2,3.4148]
[1755169865875,2.7229,4708.8,4708.2,3.4148]
[1755169866048,2.7229,4708.8,4708.2,0.85158]
[1755169866049,2.2555,4708.3,4708.2,0.85158]
[1755169866257,2.2555,4708.3,4708.2,3.4148]
[1755169866579,2.2555,4708.3,4708.2,0.0008]
[1755169866735,2.7229,4708.8,4708.2,8.5068]
[1755169867638,2.2555,4708.8,4708.2,8.5068]
[1755169867827,2.2555,4708.8,4708.3,0.85068]
[1755169868160,0.4674,4709.6,4708.5,3.0]
[1755169868373,0.002,4709.8,4708.4,0.55]
[1755169868374,0.4674,4709.7,4708.4,0.55]
[1755169868535,0.4674,4709.7,4708.7,3.0]
[1755169868734,2.2575,4709.8,4708.7,3.0]
[1755169868966,2.7249,4709.8,4708.8,0.73847]
[1755169869123,2.7249,4709.8,4708.9,3.413]
[1755169869329,2.7249,4709.8,4709.0,3.413]
[1755169869963,2.7249,4709.8,4708.8,0.73847]
[1755169870130,2.7249,4709.8,4709.0,3.0]
[1755169870326,0.002,4709.8,4709.1,3.413]
[1755169870879,0.002,4709.8,4708.4,0.9717]
[1755169871086,0.002,4709.8,4708.6,3.55]
[1755169871592,2.2555,4709.9,4708.6,3.55]
[1755169871593,2.2075,4709.9,4709.1,3.0]
[1755169871802,3.69,4710.2,4709.3,3.0]
[1755169873852,2.2555,4710.1,4709.3,3.0]
[1755169874344,2.2555,4710.1,4709.2,5.51412725]
[1755169874345,2.2555,4710.1,4709.2,2.10112725]
[1755169874581,3.69,4710.2,4709.8,28.33044788]
[1755169874890,3.69,4710.2,4709.9,8.51212725]
[1755169875347,3.69,4710.2,4709.9,2.10112725]
[1755169875548,2.2555,4710.1,4709.9,2.10112725]
[1755169875848,2.7229,4710.1,4710.0,3.411]
[1755169876484,3.69,4710.2,4710.1,3.0]
[1755169876681,3.69,4710.2,4710.1,3.411]
[1755169876977,3.69,4710.2,4710.1,3.7521]
[1755169877204,6.4121,4710.2,4710.1,0.3411]
[1755169877505,6.4121,4710.2,4710.1,3.411]
[1755169877875,6.4121,4710.2,4708.5,28.33044788]
[1755169878077,6.4121,4710.2,4708.6,6.85393773]
[1755169878273,3.6892,4710.2,4709.3,3.0]
[1755169878510,3.6892,4710.2,4709.2,28.33044788]
[1755169878673,2.7229,4710.1,4709.3,8.51212725]
[1755169878869,3.6892,4710.2,4709.9,28.33044788]
[1755169879074,2.2555,4710.1,4710.0,3.41]
[1755169879407,3.6892,4710.2,4710.0,3.41]
[1755169879996,3.6892,4710.2,4709.4,3.0]
[1755169879997,2.2555,4710.1,4709.4,3.0]
[1755169880307,2.6729,4710.1,4709.6,3.0]
[1755169880481,3.6892,4710.2,4709.6,3.0]
[1755169880687,0.4674,4710.1,4709.6,3.0]
[1755169880887,3.6892,4710.2,4709.7,0.55]
[1755169881073,3.6892,4710.2,4709.9,3.0]
[1755169882474,3.6892,4710.2,4710.0,6.41]
[1755169883323,3.6892,4710.2,4710.1,0.55]
[1755169883608,2.46,4710.5,4710.1,0.9717]
[1755169883812,2.46,4710.5,4710.2,0.4217]
[1755169884129,2.46,4710.5,4710.4,3.55]
[1755169884277,2.46,4710.5,4710.4,9.0617]
[1755169884694,2.46,4710.5,4710.4,12.4717]
[1755169885238,2.46,4710.5,4710.4,8.64]
[1755169885434,2.46,4710.5,4710.4,12.05]
[1755169885635,2.46,4710.5,4710.4,13.44784929]
[1755169886632,2.1525,4710.5,4710.4,10.03784929]
[1755169886795,2.1525,4710.5,4710.4,15.99151124]
[1755169887321,2.1525,4710.5,4710.4,13.45091929]
[1755169888109,2.1525,4710.5,4710.4,10.04191929]
[1755169888502,2.1025,4710.5,4710.4,13.45171929]
[1755169889396,2.1025,4710.5,4710.4,13.45071929]
[1755169889603,2.1025,4710.5,4710.4,10.04271929]
[1755169889839,2.1025,4710.5,4710.4,13.45071929]
[1755169890694,2.1025,4710.5,4710.4,10.04271929]
[1755169891234,2.1025,4710.5,4710.4,13.45071929]
[1755169892131,2.1025,4710.5,4710.4,10.04271929]
[1755169892525,2.1025,4710.5,4710.4,13.45071929]
[1755169892725,2.1025,4710.5,4710.4,13.55627333]
[1755169892924,2.1025,4710.5,4710.4,10.14827333]
[1755169893129,2.1025,4710.5,4710.4,6.49271929]
[1755169893349,4.7395,4710.5,4710.4,5.09487]
[1755169894002,4.7395,4710.5,4710.4,8.50287]
[1755169894705,4.7395,4710.5,4710.4,5.09487]
[1755169894947,4.7395,4710.5,4710.4,8.50287]
[1755169895428,4.3111,4710.5,4710.4,5.09487]
[1755169895606,4.7395,4710.5,4710.4,9.011357]
[1755169895806,4.7395,4710.5,4710.4,5.604357]
[1755169896042,4.7395,4710.5,4710.4,9.011357]
[1755169896654,4.3111,4710.5,4710.4,9.011357]
[1755169896949,4.3111,4710.5,4710.4,12.011357]
[1755169897638,4.7395,4710.5,4710.4,12.011357]
[1755169897843,4.7395,4710.5,4710.4,8.604357]
[1755169898145,4.7395,4710.5,4710.4,12.011357]
[1755169898314,4.7395,4710.5,4710.4,8.604357]
[1755169898518,4.7395,4710.5,4710.4,12.011357]
[1755169899045,4.3111,4710.5,4710.4,12.011357]
[1755169899242,4.3103,4710.5,4710.4,12.011357]
[1755169899544,2.1017,4710.5,4710.4,12.011357]
[1755169900734,2.1017,4710.5,4710.4,12.561357]
[1755169901164,2.1017,4710.5,4710.4,12.560357]
[1755169901468,2.1017,4710.5,4710.4,8.603357]
[1755169901744,2.0517,4710.5,4710.4,8.603357]
[1755169901949,2.0517,4710.5,4710.4,12.010357]
[1755169902325,2.0517,4710.5,4710.4,8.603357]
[1755169902530,2.0517,4710.5,4710.4,12.010357]
[1755169904333,2.0517,4710.5,4710.4,8.603357]
[1755169904535,2.0517,4710.5,4710.4,12.009357]
[1755169909537,4.2603,4710.5,4710.4,8.603357]
[1755169909735,4.6387,4710.5,4710.4,8.603357]
[1755169909946,4.6387,4710.5,4710.4,12.008357]
[1755169910332,4.6387,4710.5,4710.4,8.09387]
[1755169910535,2.0017,4710.5,4710.4,11.49887]
[1755169912028,2.0017,4710.5,4710.4,8.09387]
[1755169912226,4.5133,4710.5,4710.4,8.09387]
[1755169912447,4.5133,4710.5,4710.4,11.49887]
[1755169912669,4.5133,4710.5,4710.4,12.29687656]
[1755169913751,4.5133,4710.5,4710.4,8.89187656]
[1755169913952,4.0552,4710.5,4710.4,12.29687656]
[1755169914138,4.0552,4710.5,4710.4,11.49887]
[1755169914344,4.5133,4710.5,4710.4,11.49887]
[1755169915392,4.5133,4710.5,4710.4,8.09387]
[1755169915614,4.5133,4710.5,4710.4,11.49887]
[1755169917967,4.0552,4710.5,4710.4,11.49887]
[1755169918185,4.5133,4710.5,4710.4,12.647757]
[1755169918389,4.5133,4710.5,4710.4,11.49787]
[1755169919605,4.4633,4710.5,4710.4,11.49787]
[1755169921609,4.4625,4710.5,4710.4,11.49787]
[1755169922684,4.4625,4710.5,4710.4,8.09387]
[1755169922892,4.4625,4710.5,4710.4,11.49787]
[1755169923092,4.4625,4710.5,4710.4,12.647657]
[1755169924706,4.4625,4710.5,4710.4,6.243657]
[1755169924905,4.4625,4710.5,4710.4,8.49687]
[1755169925075,4.4625,4710.5,4709.3,3.0]
[1755169925269,2.0535,4710.4,4709.3,3.0]
[1755169925488,2.5116,4710.4,4709.3,3.0]
[1755169925803,0.4581,4710.3,4709.4,0.809]
[1755169926375,2.0535,4710.2,4709.5,3.403]
[1755169926571,0.4581,4710.1,4709.4,0.809]
[1755169926805,0.4581,4710.1,4709.5,3.403]
[1755169927009,0.4581,4710.1,4709.7,3.0]
[1755169927213,2.0535,4710.0,4709.7,3.0]
[1755169927419,0.4581,4709.9,4709.8,3.403]
[1755169927585,0.4581,4709.9,4709.2,5.089]
[1755169927907,2.0535,4709.8,4709.3,6.403]
[1755169928098,1.9509,4710.5,4709.3,6.403]
[1755169928293,2.5116,4709.7,4709.3,6.403]
[1755169928478,2.5116,4709.6,4709.3,6.403]
[1755169928685,2.0535,4709.5,4709.3,6.403]
[1755169928909,2.0035,4709.4,4709.3,7.60331]
[1755169930128,2.4616,4709.4,4709.3,4.20031]
[1755169930617,2.4616,4709.4,4709.3,7.60231]
[1755169931798,2.4616,4709.4,4709.3,4.20031]
[1755169932115,2.4616,4709.4,4709.3,4.20111]
[1755169932320,2.4616,4709.4,4709.3,7.60311]
[1755169932525,2.4616,4709.4,4709.3,4.20111]
[1755169932686,2.4616,4709.4,4709.3,7.60311]
[1755169932880,2.4616,4709.4,4709.3,4.20111]
[1755169933105,2.4616,4709.4,4709.3,7.60311]
[1755169933380,2.0535,4709.8,4709.3,7.60311]
[1755169933605,2.0535,4709.7,4709.3,7.60311]
[1755169933804,2.0535,4709.6,4709.3,7.60311]
[1755169934011,1.9509,4710.5,4709.3,7.60311]
[1755169934209,2.5116,4710.4,4709.3,7.60311]
[1755169934405,0.4581,4710.3,4709.3,7.60311]
[1755169934882,2.0535,4710.2,4709.3,0.0008]
[1755169935088,0.47941303,4710.1,4709.4,3.402]
[1755169935320,0.47941303,4710.1,4709.3,0.0008]
[1755169935548,2.0535,4710.0,4709.3,0.0008]
[1755169935724,2.12340932,4709.5,4709.3,0.0008]
[1755169935897,2.9575772,4709.4,4709.1,0.001]
[1755169936090,2.5116,4709.3,4709.1,0.001]
[1755169936429,0.4581,4709.2,4709.1,0.001]
[1755169936632,2.5116,4709.2,4709.1,3.403]
[1755169936798,2.4616,4709.2,4709.1,3.5094]
[1755169937327,2.0535,4709.2,4709.1,3.5094]
[1755169937527,1.9509,4710.5,4709.1,3.5094]
[1755169937714,2.0535,4709.8,4709.1,3.5094]
[1755169937901,2.0535,4709.8,4709.1,3.403]
[1755169938089,2.0535,4709.8,4709.7,0.1064]
[1755169938289,2.0535,4709.8,4709.7,3.5084]
[1755169938825,2.5116,4709.8,4709.7,3.5084]
[1755169939125,2.0535,4709.8,4709.7,3.85924]
[1755169939326,2.0535,4709.8,4709.7,3.5084]
[1755169939523,2.0535,4709.8,4709.7,3.402]
[1755169939727,2.5116,4709.8,4709.7,3.5084]
[1755169940322,2.0535,4709.8,4709.7,3.5084]
[1755169940500,2.5116,4710.2,4709.7,3.5084]
[1755169940830,0.4581,4710.2,4710.1,0.1064]
[1755169941190,2.5116,4710.2,4710.1,0.1064]
[1755169942027,1.9509,4710.5,4710.1,0.1064]
[1755169942232,2.444,4710.4,4710.2,3.401]
[1755169942427,1.9928,4710.4,4710.2,3.401]
[1755169942634,0.4512,4710.3,4710.2,3.401]
[1755169942834,0.4512,4710.3,4710.1,0.0008]
[1755169943008,0.47251303,4710.3,4710.2,3.5074]
[1755169943340,0.6935413,4710.3,4710.2,0.1064]
[1755169943698,2.6863413,4710.3,4710.2,0.1064]
[1755169944924,0.55,4710.2,4709.1,0.001]
[1755169945100,2.12363347,4709.0,4707.7,3.4]
[1755169945306,2.444,4708.9,4707.7,3.4]
[1755169945503,0.4512,4708.8,4707.7,3.4]
[1755169945833,0.444,4708.8,4708.6,0.1064]
[1755169946230,2.56769812,4708.8,4708.6,0.1064]
[1755169946407,2.67361864,4709.0,4708.6,0.1064]
[1755169946613,2.123643,4708.9,4708.6,0.1064]
[1755169947006,2.12368741,4708.8,4708.6,0.1064]
[1755169947337,0.2423413,4709.0,4708.6,0.1064]
[1755169947633,2.12341791,4709.4,4708.6,0.1064]
[1755169947833,2.12341791,4709.4,4709.2,0.001]
[1755169948136,2.444,4709.3,4709.2,0.001]
[1755169950208,4.56745783,4709.3,4709.2,0.001]
[1755169951043,6.09718084,4709.3,4709.2,0.001]
[1755169955925,6.04718084,4709.3,4709.2,0.001]
[1755169956724,2.67368331,4708.8,4708.7,0.001]
[1755169956968,11.06548331,4708.8,4708.7,0.001]
[1755169957170,12.26862327,4708.8,4708.7,0.001]
[1755169958123,12.71982327,4708.8,4708.7,0.001]
[1755169959365,12.71882327,4708.8,4708.7,0.001]
[1755169960429,2.67381862,4708.5,4707.9,0.001]
[1755169960625,11.53713165,4708.5,4707.9,0.001]
[1755169960825,2.67404418,4708.0,4707.9,0.001]
[1755169961055,6.19975721,4708.0,4707.9,0.001]
[1755169961275,8.62244418,4708.0,4707.9,0.001]
[1755169961876,8.62244418,4708.0,4707.9,0.0018]
[1755169962172,11.62244418,4708.0,4707.9,0.0018]
[1755169962380,12.82558414,4708.0,4707.9,0.0018]
[1755169963129,12.82558414,4708.0,4707.9,1e-08]
[1755169963634,12.82558414,4708.0,4706.8,0.1064]
[1755169963635,2.67454056,4706.9,4706.8,0.1064]
[1755169963839,2.67476627,4706.4,4706.3,0.001]
[1755169965031,0.55,4706.4,4706.3,0.4648]
[1755169965246,0.55,4706.4,4706.3,0.001]
[1755169965728,2.12369152,4708.8,4706.3,0.001]
[1755169965977,2.12450173,4707.0,4706.3,0.4648]
[1755169966227,2.12445196,4707.1,4706.3,0.4648]
[1755169966423,0.02131303,4707.0,4706.3,0.4648]
[1755169966628,0.4512,4708.0,4706.3,0.4648]
[1755169966830,2.12421659,4707.7,4706.3,0.4648]
[1755169967058,0.55,4707.6,4706.3,0.4648]
[1755169967267,0.57131303,4707.5,4706.3,0.4648]
[1755169967475,0.55,4707.4,4706.3,0.4648]
[1755169967778,3.397,4708.2,4706.4,1.524]
[1755169967975,3.0,4708.1,4706.5,0.4638]
[1755169968147,0.02131303,4708.0,4706.6,1.72288]
[1755169968488,0.02131303,4708.0,4706.7,0.4638]
[1755169969364,0.55,4707.9,4706.7,0.4638]
[1755169969876,0.02131303,4708.0,4706.7,0.4638]
[1755169970459,0.55,4708.1,4706.8,1.524]
[1755169970675,0.55,4708.1,4706.9,0.682468]
[1755169970875,0.02131303,4708.0,4706.9,0.4638]
[1755169971071,2.67400462,4708.1,4706.9,0.4638]
[1755169971374,0.02131303,4708.2,4706.9,0.4638]
[1755169973743,0.02131303,4708.2,4707.8,0.1064]
[1755169973942,0.54207221,4708.1,4707.8,0.1064]
[1755169974158,5.31447248,4708.0,4706.9,0.4638]
[1755169974484,0.55,4707.9,4706.9,0.4638]
[1755169974684,2.67410355,4707.9,4707.1,0.1064]
[1755169975295,0.55,4707.7,4707.1,0.1064]
[1755169976058,0.02131303,4707.8,4707.1,0.1064]
[1755169976294,2.67412518,4707.9,4707.1,0.1064]
[1755169976598,0.55,4707.7,4707.1,0.1064]
[1755169976808,0.55,4707.8,4707.1,0.1064]
[1755169977818,3.14713652,4707.8,4707.1,0.1064]
[1755169977972,3.16844955,4707.8,4707.1,0.1064]
[1755169978320,1.04431303,4707.8,4707.1,0.1064]
[1755169979911,0.55,4707.6,4706.7,3.395]
[1755169980067,0.55,4707.4,4706.9,0.1064]
[1755169980274,0.55,4707.2,4706.3,0.001]
[1755169980469,0.55,4706.9,4706.5,0.1064]
[1755169980673,0.55,4707.0,4706.5,0.1064]
[1755169980897,0.5794,4707.1,4706.5,0.1064]
[1755169980898,0.55,4706.8,4706.5,0.1064]
[1755169981179,4.27073843,4706.7,4706.3,0.001]
[1755169981406,0.02131303,4706.6,4706.3,0.1074]
[1755169981714,0.55,4706.5,4706.3,0.1074]
[1755169981915,4.82086627,4706.4,4706.3,0.1074]
[1755169982117,5.29386627,4706.4,4706.3,0.001]
[1755169982324,6.04636129,4706.4,4706.3,0.001]
[1755169987197,5.57336129,4706.4,4706.3,0.001]
[1755169987588,4.82086627,4706.4,4706.3,0.001]
[1755169988500,2.67476627,4706.4,4706.3,0.001]
[1755169988704,4.82086627,4706.4,4706.3,0.001]
[1755169989305,5.29386627,4706.4,4706.3,0.001]
[1755169989509,2.67476627,4706.4,4706.3,0.001]
[1755169990265,0.55,4706.4,4706.3,0.001]
[1755169990954,2.67476627,4706.4,4706.3,0.001]
[1755169991156,0.55,4706.4,4706.3,0.001]
[1755169991360,3.394,4707.0,4706.3,0.001]
[1755169991361,2.1461,4707.5,4706.3,0.001]
[1755169991666,0.1064,4707.5,4706.8,0.1064]
[1755169991878,0.1064,4707.7,4706.8,0.1064]
[1755169992155,0.1064,4707.7,4706.9,0.4473]
[1755169992520,2.12422626,4707.6,4706.9,0.4473]
[1755169992939,0.55,4707.5,4706.9,0.4473]
[1755169993182,2.12448619,4707.1,4706.8,3.4994]
[1755169993457,0.55,4706.9,4706.8,0.1064]
[1755169993634,0.55,4706.9,4706.3,3.3948]
[1755169994263,0.55,4707.0,4706.4,0.1064]
[1755169994660,0.1064,4707.3,4706.4,0.1064]
[1755169994961,0.57131303,4707.2,4706.7,0.1064]
[1755169995430,0.57131303,4707.2,4706.7,0.5537]
[1755169995621,0.02131303,4707.2,4706.7,0.1064]
[1755169995826,0.55,4707.4,4707.0,0.1064]
[1755169996024,0.02131303,4707.3,4707.0,0.1064]
[1755169996268,2.14567784,4707.3,4707.0,0.1064]
[1755169996422,0.02131303,4707.3,4707.0,0.1064]
[1755169997451,2.14563199,4707.4,4707.0,0.1064]
[1755169997639,2.12436104,4707.3,4707.0,0.1064]
[1755169997839,2.14572747,4707.2,4707.0,0.1064]
[1755169998170,2.16741303,4707.2,4707.0,0.1064]
[1755169998467,2.1461,4707.1,4706.8,0.1064]